fUSD/lending_fUSD_20241121
["ID","MTS","AMOUNT","RATE_DAILY","PERIOD"]
[342926578,1732209073372,-1252.79,0.00039178,11]
[342926579,1732209073382,-500.0,0.00039178,11]
[342926580,1732209073391,-1321.17,0.00039178,11]
[342926581,1732209073400,-500.0,0.00039178,11]
[342926582,1732209073411,-520.13,0.00039178,11]
[342926583,1732209073421,-741.51,0.00039178,11]
[342926584,1732209073434,-512.26,0.00039178,11]
[342926585,1732209073443,-1633.8,0.00039178,11]
[342926586,1732209073453,-500.0,0.00039178,11]
[342926587,1732209073462,-500.0,0.00039178,11]
[342926588,1732209073474,-500.0,0.00039178,11]
[342926589,1732209073483,-500.0,0.00039178,11]
[342926590,1732209073492,-500.0,0.00039178,11]
[342926591,1732209073502,-734.45,0.00039178,11]
[342926592,1732209073512,-500.0,0.00039178,11]
[342926593,1732209073521,-960.64,0.00039178,11]
[342926594,1732209073540,-500.0,0.00039178,11]
[342926595,1732209073550,-500.0,0.00039178,11]
[342926596,1732209073559,-616.56,0.00039178,11]
[342926597,1732209073570,-500.0,0.00039178,11]
[342926598,1732209073579,-752.12,0.00039178,11]
[342926599,1732209073589,-500.0,0.00039178,11]
[342926600,1732209073598,-758.7,0.00039178,11]
[342926601,1732209073608,-1619.83,0.00039178,11]
[342926602,1732209073617,-3730.7,0.00039178,11]
[342926603,1732209073626,-500.0,0.00039178,11]
[342926604,1732209073636,-875.11,0.00039178,11]
[342926605,1732209073646,-500.0,0.00039178,11]
[342926606,1732209073655,-604.53,0.00039178,11]
[342926607,1732209073664,-500.0,0.00039178,11]
[342926608,1732209073674,-4315.98,0.00039178,11]
[342926609,1732209073684,-500.0,0.00039178,11]
[342926610,1732209073693,-590.5,0.00039178,11]
[342926611,1732209073703,-500.0,0.00039178,11]
[342926612,1732209073714,-500.0,0.00039178,11]
[342926613,1732209073724,-500.0,0.00039178,11]
[342926614,1732209073734,-1367.1,0.00039178,11]
[342926615,1732209073743,-500.0,0.00039178,11]
[342926616,1732209073752,-500.0,0.00039178,11]
[342926617,1732209073762,-500.0,0.00039178,11]
[342926618,1732209073772,-500.0,0.00039178,7]
[342926619,1732209073782,-500.0,0.00039178,11]
[342926620,1732209073792,-500.0,0.00039178,11]
[342926621,1732209073801,-1811.26,0.00039178,11]
[342926622,1732209073811,-510.57,0.00039178,11]
[342926623,1732209073821,-659.28,0.00039178,11]
[342926624,1732209073830,-150.77299697,0.00039178,11]
[342926625,1732209073840,-1533.44,0.00039178,11]
[342926626,1732209073850,-500.0,0.00039178,11]
[342926627,1732209073859,-779.74,0.00039178,11]
[342926628,1732209073868,-3341.95,0.00039178,11]
[342926629,1732209073878,-1362.55,0.00039178,11]
[342926630,1732209073887,-500.0,0.00039178,11]
[342926631,1732209073897,-500.0,0.00039178,11]
[342926632,1732209073906,-512.73,0.00039178,11]
[342926633,1732209073915,-525.06841089,0.00039178,11]
[342926634,1732209073924,-1720.08,0.00039178,11]
[342926635,1732209073934,-500.0,0.00039178,11]
[342926636,1732209073943,-1498.59,0.00039178,11]
[342926637,1732209073954,-1471.05,0.00039178,11]
[342926638,1732209073966,-792.02,0.00039178,11]
[342926639,1732209073975,-1182.34,0.00039178,11]
[342926640,1732209073985,-837.52,0.00039178,11]
[342926641,1732209073995,-1211.37,0.00039178,11]
[342926642,1732209074004,-500.0,0.00039178,11]
[342926643,1732209074013,-500.0,0.00039178,11]
[342926644,1732209074023,-500.0,0.00039178,11]
[342926645,1732209074032,-500.0,0.00039178,11]
[342926646,1732209074041,-500.0,0.00039178,11]
[342926647,1732209074051,-500.0,0.00039178,11]
[342926648,1732209074060,-500.0,0.00039178,11]
[342926649,1732209074070,-770.8,0.00039178,11]
[342926650,1732209074079,-670.46,0.00039178,11]
[342926651,1732209074089,-500.0,0.00039178,11]
[342926652,1732209074098,-500.0,0.00039178,11]
[342926653,1732209074108,-500.0,0.00039178,11]
[342926654,1732209074117,-500.0,0.00039178,11]
[342926655,1732209074126,-500.0,0.00039178,11]
[342926656,1732209074135,-1008.56,0.00039178,11]
[342926657,1732209074144,-500.0,0.00039178,2]
[342926658,1732209074154,-500.0,0.00039178,11]
[342926659,1732209074163,-500.0,0.00039178,11]
[342926660,1732209074172,-500.0,0.00039178,11]
[342926661,1732209074181,-4535.34,0.00039178,11]
[342926662,1732209074190,-500.0,0.00039178,11]
[342926663,1732209074199,-944.88,0.00039178,11]
[342926664,1732209074208,-500.0,0.00039178,11]
[342926665,1732209074220,-500.0,0.00039178,11]
[342926666,1732209074229,-500.0,0.00039178,11]
[342926667,1732209074238,-4492.75,0.00039178,11]
[342926668,1732209074247,-500.0,0.00039178,11]
[342926669,1732209074256,-983.56,0.00039178,11]
[342926670,1732209074265,-976.54,0.00039178,11]
[342926671,1732209074274,-500.0,0.00039178,11]
[342926672,1732209074283,-500.0,0.00039178,11]
[342926673,1732209074292,-1954.58,0.00039178,11]
[342926674,1732209074301,-500.0,0.00039178,11]
[342926675,1732209074309,-500.0,0.00039178,11]
[342926676,1732209074319,-13523.53,0.00039178,11]
[342926677,1732209074327,-1112.73,0.00039178,11]
[342926678,1732209074336,-500.0,0.00039178,11]
[342926679,1732209074345,-1072.76,0.00039178,11]
[342926680,1732209074354,-79469.33975528,0.000392,2]
[342926681,1732209074364,-151.0,0.000392,14]
[342926682,1732209074373,-205.513189,0.000392,14]
[342926683,1732209074383,-169.08,0.00039209,2]
[342926684,1732209074392,-190.75,0.00039209,120]
[342926685,1732209074402,-4045.63,0.00039209,2]
[342926686,1732209074414,-23900.0,0.00039209,2]
[342926687,1732209074423,-1000.0,0.00039209,2]
[342926688,1732209074432,-230.44,0.00039209,2]
[342926689,1732209074442,-250.0,0.00039209,120]
[342926690,1732209074451,-865.13,0.000393,2]
[342926691,1732209074462,-255.85,0.000393,2]
[342926692,1732209074475,-150.0,0.000393,2]
[342926693,1732209074485,-150.0,0.000393,2]
[342926694,1732209074494,-150.0,0.000393,2]
[342926695,1732209074504,-722.23,0.000393,2]
[342926696,1732209074514,-968.82,0.000393,2]
[342926697,1732209074523,-150.0,0.000393,2]
[342926698,1732209074533,-163.81,0.000393,2]
[342926699,1732209074543,-150.0,0.000393,2]
[342926700,1732209074552,-433.47,0.000393,2]
[342926701,1732209074562,-150.0,0.000393,2]
[342926702,1732209074571,-150.0,0.000393,2]
[342926703,1732209074581,-150.0,0.000393,2]
[342926704,1732209074590,-433.47,0.000393,2]
[342926705,1732209074599,-433.47,0.000393,2]
[342926706,1732209074608,-150.0,0.000393,2]
[342926707,1732209074618,-150.0,0.000393,2]
[342926708,1732209074627,-172.42,0.000393,2]
[342926709,1732209074636,-362.63,0.000393,2]
[342926710,1732209074646,-362.63,0.000393,2]
[342926711,1732209074655,-150.0,0.000393,2]
[342926712,1732209074664,-433.47,0.000393,2]
[342926713,1732209074674,-150.0,0.000393,2]
[342926714,1732209074683,-414.91,0.000393,2]
[342926715,1732209074692,-150.0,0.000393,2]
[342926716,1732209074701,-362.63,0.000393,2]
[342926717,1732209074711,-150.0,0.000393,2]
[342926718,1732209074721,-150.0,0.000393,2]
[342926719,1732209074731,-150.0,0.000393,2]
[342926720,1732209074740,-433.47,0.000393,2]
[342926721,1732209074749,-150.0,0.000393,2]
[342926722,1732209074759,-150.0,0.000393,2]
[342926723,1732209074768,-362.63,0.000393,2]
[342926724,1732209074777,-150.0,0.000393,2]
[342926725,1732209074787,-3748.0,0.00039332,2]
[342926726,1732209074796,-1260.0,0.00039332,2]
[342926727,1732209074806,-816.0,0.00039332,2]
[342926728,1732209074815,-919.0,0.00039332,2]
[342926729,1732209074824,-3514.0,0.00039332,2]
[342926730,1732209074834,-1061.96,0.00039378,2]
[342926731,1732209074843,-554.6110911,0.00039425,2]
[342926732,1732209074853,-535.6065804,0.00039425,2]
[342926733,1732209074863,-3533.9279573,0.00039425,2]
[342926734,1732209074873,-500.0,0.00039452,11]
[342926735,1732209074883,-1056.25,0.00039452,11]
[342926736,1732209074892,-500.0,0.00039452,11]
[342926737,1732209074901,-648.09,0.00039452,11]
[342926738,1732209074911,-500.0,0.00039452,11]
[342926739,1732209074920,-574.75,0.00039452,11]
[342926740,1732209074930,-600.35952858,0.00039452,11]
[342926741,1732209074939,-500.0,0.00039452,11]
[342926742,1732209074949,-805.26,0.00039452,11]
[342926743,1732209074959,-500.0,0.00039452,11]
[342926744,1732209074969,-500.0,0.00039452,11]
[342926745,1732209074978,-500.0,0.00039452,11]
[342926746,1732209074987,-740.56,0.00039452,11]
[342926747,1732209074996,-500.0,0.00039452,11]
[342926748,1732209075005,-500.0,0.00039452,11]
[342926749,1732209075015,-500.0,0.00039452,11]
[342926750,1732209075024,-500.0,0.00039452,11]
[342926751,1732209075033,-500.0,0.00039452,11]
[342926752,1732209075042,-500.0,0.00039452,11]
[342926753,1732209075051,-500.0,0.00039452,11]
[342926754,1732209075060,-500.0,0.00039452,11]
[342926755,1732209075069,-500.0,0.00039452,11]
[342926756,1732209075078,-500.0,0.00039452,11]
[342926757,1732209075238,-500.0,0.00039452,11]
[342926758,1732209075247,-500.0,0.00039452,11]
[342926759,1732209075256,-1128.47,0.00039452,11]
[342926760,1732209075265,-500.0,0.00039452,11]
[342926761,1732209075274,-500.0,0.00039452,11]
[342926762,1732209075283,-500.0,0.00039452,11]
[342926763,1732209075292,-500.0,0.00039452,11]
[342926764,1732209075301,-500.0,0.00039452,11]
[342926765,1732209075310,-500.0,0.00039452,11]
[342926766,1732209075320,-1155.89,0.00039452,11]
[342926767,1732209075329,-537.39,0.00039452,11]
[342926768,1732209075338,-500.0,0.00039452,11]
[342926769,1732209075347,-500.0,0.00039452,11]
[342926770,1732209075357,-500.0,0.00039452,11]
[342926771,1732209075366,-500.0,0.00039452,11]
[342926772,1732209075375,-500.0,0.00039452,11]
[342926773,1732209075384,-500.0,0.00039452,11]
[342926774,1732209075393,-500.0,0.00039452,11]
[342926775,1732209075402,-500.0,0.00039452,11]
[342926776,1732209075413,-500.0,0.00039452,11]
[342926777,1732209075422,-500.0,0.00039452,11]
[342926778,1732209075435,-500.0,0.00039452,11]
[342926779,1732209075444,-587.12,0.00039452,11]
[342926780,1732209075454,-500.0,0.00039452,11]
[342926781,1732209075463,-500.0,0.00039452,11]
[342926782,1732209075476,-578.69,0.00039452,11]
[342926783,1732209075485,-589.28,0.00039452,11]
[342926784,1732209075494,-500.0,0.00039452,11]
[342926785,1732209075503,-500.0,0.00039452,11]
[342926786,1732209075514,-500.0,0.00039452,11]
[342926787,1732209075523,-500.0,0.00039452,11]
[342926788,1732209075532,-500.0,0.00039452,11]
[342926789,1732209075541,-500.0,0.00039452,11]
[342926790,1732209075551,-779.64,0.00039452,11]
[342926791,1732209075560,-500.0,0.00039452,11]
[342926792,1732209075569,-500.0,0.00039452,11]
[342926793,1732209075578,-500.0,0.00039452,11]
[342926794,1732209075587,-500.0,0.00039452,11]
[342926795,1732209075597,-180.17,0.00039452,11]
[342926796,1732209075607,-500.0,0.00039452,11]
[342926797,1732209075616,-500.0,0.00039452,11]
[342926798,1732209075625,-500.0,0.00039452,11]
[342926799,1732209075634,-500.0,0.00039452,11]
[342926800,1732209075643,-500.0,0.00039452,11]
[342926801,1732209075652,-500.0,0.00039452,11]
[342926802,1732209075661,-152.07,0.00039452,11]
[342926803,1732209075671,-500.0,0.00039452,11]
[342926804,1732209075680,-500.0,0.00039452,11]
[342926805,1732209075689,-500.0,0.00039452,11]
[342926806,1732209075698,-500.0,0.00039452,11]
[342926807,1732209075707,-500.0,0.00039452,11]
[342926808,1732209075718,-500.0,0.00039452,11]
[342926809,1732209075728,-500.0,0.00039452,11]
[342926810,1732209075737,-500.0,0.00039452,11]
[342926811,1732209075746,-500.0,0.00039452,11]
[342926812,1732209075756,-500.0,0.00039452,11]
[342926813,1732209075765,-500.0,0.00039452,11]
[342926814,1732209075774,-500.0,0.00039452,11]
[342926815,1732209075783,-500.0,0.00039452,11]
[342926816,1732209075792,-610.1,0.00039452,11]
[342926817,1732209075802,-500.0,0.00039452,11]
[342926818,1732209075811,-500.0,0.00039452,11]
[342926819,1732209075820,-500.0,0.00039452,11]
[342926820,1732209075830,-255.31,0.00039452,11]
[342926821,1732209075839,-500.0,0.00039452,11]
[342926822,1732209075849,-500.0,0.00039452,11]
[342926823,1732209075858,-500.0,0.00039452,11]
[342926824,1732209075868,-500.0,0.00039452,11]
[342926825,1732209075877,-500.0,0.00039452,11]
[342926826,1732209075886,-500.0,0.00039452,11]
[342926827,1732209075896,-500.0,0.00039452,11]
[342926828,1732209075906,-500.0,0.00039452,11]
[342926829,1732209075915,-896.48,0.00039452,7]
[342926830,1732209075925,-504.14,0.00039452,11]
[342926831,1732209075935,-500.0,0.00039452,11]
[342926832,1732209075944,-500.0,0.00039452,11]
[342926833,1732209075954,-500.0,0.00039452,11]
[342926834,1732209075964,-500.0,0.00039452,11]
[342926835,1732209075978,-500.0,0.00039452,11]
[342926836,1732209075988,-500.0,0.00039452,11]
[342926837,1732209075998,-500.0,0.00039452,11]
[342926838,1732209076008,-500.0,0.00039452,11]
[342926839,1732209076018,-943.58,0.00039452,11]
[342926840,1732209076027,-500.0,0.00039452,11]
[342926841,1732209076037,-500.0,0.00039452,11]
[342926842,1732209076046,-500.0,0.00039452,11]
[342926843,1732209076056,-593.87,0.00039452,11]
[342926844,1732209076065,-500.0,0.00039452,11]
[342926845,1732209076075,-500.0,0.00039452,11]
[342926846,1732209076085,-500.0,0.00039452,11]
[342926847,1732209076094,-583.02132222,0.00039452,11]
[342926848,1732209076103,-500.0,0.00039452,11]
[342926849,1732209076112,-943.2,0.00039452,11]
[342926850,1732209076122,-706.88,0.00039452,11]
[342926851,1732209076131,-506.76,0.00039452,11]
[342926852,1732209076140,-848.88,0.00039452,11]
[342926853,1732209076149,-763.5,0.00039452,11]
[342926854,1732209076159,-687.26,0.00039452,11]
[342926855,1732209076167,-204.71778548,0.00039452,11]
[342926856,1732209076177,-500.0,0.00039452,11]
[342926857,1732209076186,-822.37,0.00039452,11]
[342926858,1732209076196,-500.0,0.00039452,11]
[342926859,1732209076205,-718.91,0.00039452,11]
[342926860,1732209076214,-1027.54,0.00039452,11]
[342926861,1732209076231,-500.0,0.00039452,11]
[342926862,1732209076240,-500.0,0.00039452,11]
[342926863,1732209076250,-559.94,0.00039452,11]
[342926864,1732209076259,-500.0,0.00039452,11]
[342926865,1732209076268,-500.0,0.00039452,11]
[342926866,1732209076277,-500.0,0.00039452,11]
[342926867,1732209076287,-500.0,0.00039452,11]
[342926868,1732209076296,-500.0,0.00039452,11]
[342926869,1732209076305,-500.0,0.00039452,11]
[342926870,1732209076314,-500.0,0.00039452,11]
[342926871,1732209076323,-755.73,0.00039452,11]
[342926872,1732209076333,-500.0,0.00039452,11]
[342926873,1732209076342,-500.0,0.00039452,11]
[342926874,1732209076351,-500.0,0.00039452,11]
[342926875,1732209076360,-500.0,0.00039452,11]
[342926876,1732209076369,-500.0,0.00039452,11]
[342926877,1732209076378,-562.56,0.00039452,11]
[342926878,1732209076387,-500.0,0.00039452,11]
[342926879,1732209076396,-500.0,0.00039452,11]
[342926880,1732209076406,-500.0,0.00039452,11]
[342926881,1732209076420,-230.35238207,0.00039452,11]
[342926882,1732209076429,-1000.0,0.00039452,11]
[342926883,1732209076439,-578.57,0.00039452,11]
[342926884,1732209076448,-500.0,0.00039452,11]
[342926885,1732209076459,-802.57,0.00039452,11]
[342926886,1732209076472,-500.0,0.00039452,11]
[342926887,1732209076481,-285.74286754,0.00039452,11]
[342926888,1732209076490,-683.75,0.00039452,11]
[342926889,1732209076501,-500.0,0.00039452,11]
[342926890,1732209076511,-793.1,0.00039452,11]
[342926891,1732209076521,-500.0,0.00039452,11]
[342926892,1732209076530,-500.0,0.00039452,11]
[342926893,1732209076539,-500.0,0.00039452,11]
[342926894,1732209076548,-500.0,0.00039452,11]
[342926895,1732209076558,-500.0,0.00039452,11]
[342926896,1732209076567,-743.18,0.00039452,11]
[342926897,1732209076576,-619.84,0.00039452,11]
[342926898,1732209076585,-623.3,0.00039452,11]
[342926899,1732209076594,-529.51,0.00039452,11]
[342926900,1732209076604,-500.0,0.00039452,11]
[342926901,1732209076613,-627.01,0.00039452,11]
[342926902,1732209076622,-500.0,0.00039452,11]
[342926903,1732209076632,-533.23,0.00039452,11]
[342926904,1732209076641,-748.1,0.00039452,11]
[342926905,1732209076650,-660.87,0.00039452,11]
[342926906,1732209076659,-500.0,0.00039452,11]
[342926907,1732209076668,-267.28741179,0.00039452,11]
[342926908,1732209076677,-500.0,0.00039452,11]
[342926909,1732209076687,-500.0,0.00039452,11]
[342926910,1732209076696,-500.0,0.00039452,11]
[342926911,1732209076705,-500.0,0.00039452,11]
[342926912,1732209076714,-500.0,0.00039452,11]
[342926913,1732209076730,-500.0,0.00039452,11]
[342926914,1732209076739,-500.0,0.00039452,11]
[342926915,1732209076748,-500.0,0.00039452,11]
[342926916,1732209076758,-500.0,0.00039452,11]
[342926917,1732209076767,-500.0,0.00039452,11]
[342926918,1732209076777,-667.02,0.00039452,11]
[342926919,1732209076787,-592.78,0.00039452,11]
[342926920,1732209076796,-500.0,0.00039452,11]
[342926921,1732209076806,-500.0,0.00039452,11]
[342926922,1732209076816,-500.0,0.00039452,11]
[342926923,1732209076825,-500.0,0.00039452,11]
[342926924,1732209076836,-817.96,0.00039452,11]
[342926925,1732209076846,-500.0,0.00039452,11]
[342926926,1732209076855,-811.48,0.00039452,11]
[342926927,1732209076865,-500.0,0.00039452,11]
[342926928,1732209076875,-500.0,0.00039452,11]
[342926929,1732209076885,-500.0,0.00039452,7]
[342926930,1732209076894,-500.0,0.00039452,11]
[342926931,1732209076904,-500.0,0.00039452,11]
[342926932,1732209076913,-500.0,0.00039452,11]
[342926933,1732209076922,-500.0,0.00039452,11]
[342926934,1732209076931,-500.0,0.00039452,11]
[342926935,1732209076941,-500.0,0.00039452,11]
[342926936,1732209076950,-500.0,0.00039452,11]
[342926937,1732209076959,-993.44,0.00039452,11]
[342926938,1732209076974,-664.21,0.00039452,11]
[342926939,1732209076984,-500.0,0.00039452,11]
[342926940,1732209076994,-500.0,0.00039452,11]
[342926941,1732209077004,-500.0,0.00039452,11]
[342926942,1732209077013,-500.0,0.00039452,11]
[342926943,1732209077022,-500.0,0.00039452,11]
[342926944,1732209077032,-500.0,0.00039452,11]
[342926945,1732209077042,-607.71519108,0.00039452,11]
[342926946,1732209077051,-608.29,0.00039452,11]
[342926947,1732209077061,-500.0,0.00039452,11]
[342926948,1732209077071,-500.0,0.00039452,11]
[342926949,1732209077081,-500.0,0.00039452,11]
[342926950,1732209077091,-500.0,0.00039452,11]
[342926951,1732209077100,-500.0,0.00039452,11]
[342926952,1732209077110,-500.0,0.00039452,11]
[342926953,1732209077120,-500.0,0.00039452,11]
[342926954,1732209077129,-500.0,0.00039452,11]
[342926955,1732209077138,-566.69,0.00039452,11]
[342926956,1732209077147,-805.63,0.00039452,11]
[342926957,1732209077156,-500.0,0.00039452,11]
[342926958,1732209077165,-500.0,0.00039452,11]
[342926959,1732209077174,-500.0,0.00039452,11]
[342926960,1732209077183,-500.0,0.00039452,11]
[342926961,1732209077193,-1092.26,0.00039452,11]
[342926962,1732209077202,-500.0,0.00039452,11]
[342926963,1732209077211,-500.0,0.00039452,11]
[342926964,1732209077227,-500.0,0.00039452,11]
[342926965,1732209077236,-500.0,0.00039452,11]
[342926966,1732209077246,-500.0,0.00039452,11]
[342926967,1732209077256,-500.0,0.00039452,11]
[342926968,1732209077266,-500.0,0.00039452,11]
[342926969,1732209077275,-500.0,0.00039452,11]
[342926970,1732209077285,-851.08,0.00039452,11]
[342926971,1732209077294,-500.0,0.00039452,11]
[342926972,1732209077304,-825.54,0.00039452,11]
[342926973,1732209077313,-500.0,0.00039452,11]
[342926974,1732209077322,-609.54,0.00039452,11]
[342926975,1732209077332,-500.0,0.00039452,11]
[342926976,1732209077341,-500.0,0.00039452,11]
[342926977,1732209077350,-500.0,0.00039452,11]
[342926978,1732209077360,-510.15,0.00039452,11]
[342926979,1732209077369,-500.0,0.00039452,11]
[342926980,1732209077379,-500.0,0.00039452,11]
[342926981,1732209077388,-589.93,0.00039452,11]
[342926982,1732209077398,-500.0,0.00039452,11]
[342926983,1732209077407,-1030.83,0.00039452,11]
[342926984,1732209077418,-833.36,0.00039452,11]
[342926985,1732209077429,-337.73,0.00039452,7]
[342926986,1732209077439,-500.0,0.00039452,11]
[342926987,1732209077448,-861.33,0.00039452,11]
[342926988,1732209077458,-500.0,0.00039452,11]
[342926989,1732209077470,-500.0,0.00039452,11]
[342926990,1732209077480,-500.0,0.00039452,11]
[342926991,1732209077489,-783.55,0.00039452,11]
[342926992,1732209077498,-500.0,0.00039452,11]
[342926993,1732209077507,-500.0,0.00039452,11]
[342926994,1732209077658,-500.0,0.00039452,11]
[342926995,1732209077667,-500.0,0.00039452,11]
[342926996,1732209077677,-500.0,0.00039452,11]
[342926997,1732209077686,-550.09,0.00039452,11]
[342926998,1732209077695,-609.98,0.00039452,11]
[342926999,1732209077703,-500.0,0.00039452,11]
[342927000,1732209077713,-500.0,0.00039452,11]
[342927001,1732209077726,-500.0,0.00039452,11]
[342927002,1732209077735,-500.0,0.00039452,11]
[342927003,1732209077745,-500.0,0.00039452,11]
[342927004,1732209077754,-309.69116346,0.00039452,11]
[342927005,1732209077763,-500.0,0.00039452,11]
[342927006,1732209077773,-378.30462253,0.00039452,11]
[342927007,1732209077782,-500.0,0.00039452,11]
[342927008,1732209077791,-1697.17,0.00039452,11]
[342927009,1732209077801,-500.0,0.00039452,11]
[342927010,1732209077810,-500.0,0.00039452,11]
[342927011,1732209077819,-539.71,0.00039452,11]
[342927012,1732209077828,-520.06,0.00039452,11]
[342927013,1732209077840,-500.0,0.00039452,11]
[342927014,1732209077850,-500.0,0.00039452,11]
[342927015,1732209077860,-500.0,0.00039452,11]
[342927016,1732209077869,-500.0,0.00039452,11]
[342927017,1732209077878,-500.0,0.00039452,11]
[342927018,1732209077888,-500.0,0.00039452,11]
[342927019,1732209077897,-500.0,0.00039452,11]
[342927020,1732209077906,-597.75327547,0.00039452,11]
[342927021,1732209077915,-557.33,0.00039452,11]
[342927022,1732209077925,-500.0,0.00039452,11]
[342927023,1732209077934,-811.45,0.00039452,11]
[342927024,1732209077943,-500.0,0.00039452,11]
[342927025,1732209077953,-500.0,0.00039452,11]
[342927026,1732209077963,-500.0,0.00039452,11]
[342927027,1732209077978,-500.0,0.00039452,11]
[342927028,1732209077987,-500.0,0.00039452,11]
[342927029,1732209077996,-500.0,0.00039452,11]
[342927030,1732209078006,-835.91,0.00039452,11]
[342927031,1732209078016,-500.0,0.00039452,11]
[342927032,1732209078025,-500.0,0.00039452,11]
[342927033,1732209078035,-683.12,0.00039452,11]
[342927034,1732209078044,-500.0,0.00039452,11]
[342927035,1732209078054,-500.0,0.00039452,11]
[342927036,1732209078064,-796.83,0.00039452,11]
[342927037,1732209078074,-500.0,0.00039452,11]
[342927038,1732209078083,-500.0,0.00039452,11]
[342927039,1732209078092,-500.0,0.00039452,11]
[342927040,1732209078102,-616.1,0.00039452,11]
[342927041,1732209078112,-1663.42,0.00039452,11]
[342927042,1732209078121,-500.0,0.00039452,11]
[342927043,1732209078130,-2313.94,0.00039452,11]
[342927044,1732209078140,-1643.67,0.00039452,11]
[342927045,1732209078150,-500.0,0.00039452,11]
[342927046,1732209078160,-888.86,0.00039452,11]
[342927047,1732209078169,-500.0,0.00039452,11]
[342927048,1732209078178,-500.0,0.00039452,11]
[342927049,1732209078187,-500.0,0.00039452,11]
[342927050,1732209078196,-500.0,0.00039452,11]
[342927051,1732209078205,-885.6,0.00039452,11]
[342927052,1732209078214,-669.53,0.00039452,11]
[342927053,1732209078227,-1104.14,0.00039452,11]
[342927054,1732209078236,-509.94,0.00039452,11]
[342927055,1732209078245,-500.0,0.00039452,11]
[342927056,1732209078254,-500.0,0.00039452,11]
[342927057,1732209078264,-500.0,0.00039452,11]
[342927058,1732209078273,-500.0,0.00039452,11]
[342927059,1732209078282,-500.0,0.00039452,11]
[342927060,1732209078291,-500.0,0.00039452,11]
[342927061,1732209078301,-1026.05,0.00039452,11]
[342927062,1732209078310,-1369.86,0.00039452,11]
[342927063,1732209078320,-319.62630316,0.00039452,11]
[342927064,1732209078329,-500.0,0.00039452,11]
[342927065,1732209078338,-500.0,0.00039452,11]
[342927066,1732209078347,-1001.34,0.00039452,11]
[342927067,1732209078357,-978.47,0.00039452,11]
[342927068,1732209078367,-508.56,0.00039452,11]
[342927069,1732209078377,-500.0,0.00039452,11]
[342927070,1732209078387,-697.15,0.00039452,11]
[342927071,1732209078396,-500.0,0.00039452,11]
[342927072,1732209078405,-500.0,0.00039452,11]
[342927073,1732209078420,-949.01,0.00039452,11]
[342927074,1732209078429,-500.0,0.00039452,11]
[342927075,1732209078438,-1898.28,0.00039452,11]
[342927076,1732209078448,-4574.36,0.00039452,11]
[342927077,1732209078458,-942.92,0.00039452,11]